[Event "*** Titled Tuesday Blitz"]
[Site "Chess.com"]
[Date "2020.03.03"]
[Round "9"]
[White "Gentlejimmy7"]
[Black "Vaathi_Coming"]
[Result "0-1"]
[WhiteElo "2695"]
[BlackElo "2833"]
[TimeControl "180+1"]
[EndTime "14:45:41 PST"]
[Termination "Vaathi_Coming won by resignation"]

1. d4 {[%clk 0:03:00.9]} 1... Nf6 {[%clk 0:02:59.5]} 2. Nf3 {[%clk 0:02:39.8]}
2... e6 {[%clk 0:02:58.8]} 3. g3 {[%clk 0:02:39.6]} 3... b6 {[%clk 0:02:57.9]}
4. Bg2 {[%clk 0:02:36.9]} 4... Bb7 {[%clk 0:02:58.8]} 5. O-O {[%clk 0:02:37.1]}
5... Be7 {[%clk 0:02:59.4]} 6. c4 {[%clk 0:02:37.3]} 6... O-O {[%clk 0:02:59.5]}
7. d5 {[%clk 0:02:37.9]} 7... exd5 {[%clk 0:02:59.3]} 8. Nh4 {[%clk 0:02:37]}
8... c6 {[%clk 0:02:59.6]} 9. cxd5 {[%clk 0:02:37.5]} 9... Nxd5 {[%clk
0:02:59.4]} 10. Nf5 {[%clk 0:02:38.2]} 10... Re8 {[%clk 0:02:58.3]} 11. e4
{[%clk 0:02:33.2]} 11... Nc7 {[%clk 0:02:57.9]} 12. Nc3 {[%clk 0:02:33.7]} 12...
d5 {[%clk 0:02:55.9]} 13. Bf4 {[%clk 0:02:30]} 13... Ne6 {[%clk 0:02:54.5]} 14.
Be5 {[%clk 0:02:19.6]} 14... Nd7 {[%clk 0:02:42.5]} 15. Bd6 {[%clk 0:02:14.8]}
15... Bf8 {[%clk 0:02:30.6]} 16. exd5 {[%clk 0:02:11.2]} 16... cxd5 {[%clk
0:02:30.7]} 17. Nxd5 {[%clk 0:02:09.1]} 17... Bxd5 {[%clk 0:02:27.3]} 18. Qxd5
{[%clk 0:02:03.9]} 18... Rc8 {[%clk 0:02:26.7]} 19. Rfd1 {[%clk 0:02:01.6]}
19... Nf6 {[%clk 0:02:26.7]} 20. Qb5 {[%clk 0:01:52.1]} 20... Qd7 {[%clk
0:02:24.4]} 21. Qxd7 {[%clk 0:01:35.1]} 21... Nxd7 {[%clk 0:02:25.3]} 22. Bb7
{[%clk 0:01:17.5]} 22... Rc2 {[%clk 0:02:22]} 23. Bxf8 {[%clk 0:01:03.5]} 23...
Ndxf8 {[%clk 0:02:19.7]} 24. Rab1 {[%clk 0:01:03]} 24... g6 {[%clk 0:02:18.6]}
25. Nd4 {[%clk 0:01:02.8]} 25... Nxd4 {[%clk 0:02:18.4]} 26. Rxd4 {[%clk
0:01:03.7]} 26... Ree2 {[%clk 0:02:18.1]} 27. Rf4 {[%clk 0:01:03.8]} 27... Ne6
{[%clk 0:02:17.9]} 28. Rf3 {[%clk 0:00:57.1]} 28... Ng5 {[%clk 0:02:11]} 29. Rc3
{[%clk 0:00:53.3]} 29... Rxf2 {[%clk 0:02:05.3]} 30. Rxc2 {[%clk 0:00:51]} 30...
Nh3+ {[%clk 0:02:05.5]} 31. Kh1 {[%clk 0:00:49.1]} 31... Rxc2 {[%clk 0:02:06.4]}
32. a4 {[%clk 0:00:42]} 32... Kg7 {[%clk 0:02:04.5]} 33. b4 {[%clk 0:00:41.4]}
33... h5 {[%clk 0:01:57.8]} 34. a5 {[%clk 0:00:40.6]} 34... Nf2+ {[%clk
0:01:58]} 35. Kg1 {[%clk 0:00:39.9]} 35... Ng4 {[%clk 0:01:58.9]} 36. axb6
{[%clk 0:00:35.9]} 36... axb6 {[%clk 0:01:58.7]} 37. h3 {[%clk 0:00:33.4]} 37...
Ne3 {[%clk 0:01:58.8]} 38. Re1 {[%clk 0:00:28.5]} 38... Rc3 {[%clk 0:01:58.9]}
39. Kf2 {[%clk 0:00:26.1]} 39... Nf5 {[%clk 0:01:58.2]} 40. g4 {[%clk
0:00:24.3]} 40... hxg4 {[%clk 0:01:59.1]} 41. hxg4 {[%clk 0:00:25.2]} 41... Nh6
{[%clk 0:01:57.8]} 42. Re4 {[%clk 0:00:23.9]} 42... Kf6 {[%clk 0:01:52.7]} 43.
Bd5 {[%clk 0:00:22.8]} 43... Kg5 {[%clk 0:01:52.4]} 44. Re7 {[%clk 0:00:19.7]}
44... Nxg4+ {[%clk 0:01:52.1]} 45. Ke2 {[%clk 0:00:18.9]} 45... f5 {[%clk
0:01:52.2]} 46. Re6 {[%clk 0:00:17.6]} 46... b5 {[%clk 0:01:49.5]} 47. Rb6
{[%clk 0:00:16.8]} 47... Nf6 {[%clk 0:01:40.1]} 48. Bf7 {[%clk 0:00:13]} 48...
Rc7 {[%clk 0:01:35.3]} 49. Rxf6 {[%clk 0:00:11.8]} 49... Kxf6 {[%clk 0:01:34.3]}
0-1

[Event "*** Titled Tuesday Blitz"]
[Site "Chess.com"]
[Date "2020.03.03"]
[Round "9"]
[White "riconaipe"]
[Black "djano"]
[Result "0-1"]
[WhiteElo "2540"]
[BlackElo "2405"]
[TimeControl "180+1"]
[EndTime "14:45:46 PST"]
[Termination "djano won by checkmate"]

1. Nf3 {[%clk 0:02:54.9]} 1... Nf6 {[%clk 0:02:57.5]} 2. g3 {[%clk 0:02:54.2]}
2... g6 {[%clk 0:02:55.4]} 3. Bg2 {[%clk 0:02:55.1]} 3... Bg7 {[%clk 0:02:55.7]}
4. O-O {[%clk 0:02:56]} 4... O-O {[%clk 0:02:55.9]} 5. c4 {[%clk 0:02:56.2]}
5... c6 {[%clk 0:02:53.5]} 6. Nc3 {[%clk 0:02:56.2]} 6... d5 {[%clk 0:02:53.6]}
7. cxd5 {[%clk 0:02:54.6]} 7... cxd5 {[%clk 0:02:53.4]} 8. d4 {[%clk 0:02:54.7]}
8... Ne4 {[%clk 0:02:52.7]} 9. Be3 {[%clk 0:02:49.1]} 9... Nxc3 {[%clk
0:02:50.6]} 10. bxc3 {[%clk 0:02:45.3]} 10... Nc6 {[%clk 0:02:51.5]} 11. Rb1
{[%clk 0:02:44.6]} 11... Na5 {[%clk 0:02:47.8]} 12. Nd2 {[%clk 0:02:43.6]} 12...
Bf5 {[%clk 0:02:45.3]} 13. Rb5 {[%clk 0:02:39.4]} 13... Be6 {[%clk 0:02:33.9]}
14. Bg5 {[%clk 0:02:35.3]} 14... a6 {[%clk 0:02:26.9]} 15. Bxe7 {[%clk
0:02:32.1]} 15... Qxe7 {[%clk 0:02:23.1]} 16. Rxa5 {[%clk 0:02:32.4]} 16... b5
{[%clk 0:01:46.7]} 17. e4 {[%clk 0:02:27.6]} 17... Qc7 {[%clk 0:01:26.9]} 18.
Ra3 {[%clk 0:02:26.3]} 18... Rfd8 {[%clk 0:01:17.6]} 19. exd5 {[%clk 0:02:18.7]}
19... Bxd5 {[%clk 0:01:17.6]} 20. Ne4 {[%clk 0:02:19.3]} 20... Qc6 {[%clk
0:01:03.5]} 21. f3 {[%clk 0:02:11.1]} 21... f5 {[%clk 0:00:59.3]} 22. Nf2 {[%clk
0:01:49.3]} 22... Rac8 {[%clk 0:00:46.7]} 23. Nd3 {[%clk 0:01:45.7]} 23... a5
{[%clk 0:00:37.6]} 24. Nc5 {[%clk 0:01:31.1]} 24... a4 {[%clk 0:00:34.2]} 25.
Qe2 {[%clk 0:01:19.1]} 25... Bc4 {[%clk 0:00:32.8]} 26. Qf2 {[%clk 0:01:18.4]}
26... Bxf1 {[%clk 0:00:31.6]} 27. Bxf1 {[%clk 0:01:19.3]} 27... b4 {[%clk
0:00:30.8]} 28. Rxa4 {[%clk 0:01:16.3]} 28... bxc3 {[%clk 0:00:31]} 29. Rc4
{[%clk 0:01:15.2]} 29... Qd5 {[%clk 0:00:29.2]} 30. Kg2 {[%clk 0:00:36]} 30...
Bxd4 {[%clk 0:00:29]} 31. Qe2 {[%clk 0:00:34.2]} 31... Rxc5 {[%clk 0:00:28]} 32.
Ra4 {[%clk 0:00:27.8]} 32... c2 {[%clk 0:00:26.8]} 33. Ra7 {[%clk 0:00:18.7]}
33... c1=Q {[%clk 0:00:25]} 34. Qe7 {[%clk 0:00:18.7]} 34... Qxf1+ {[%clk
0:00:22.3]} 35. Kxf1 {[%clk 0:00:16.5]} 35... Qxf3+ {[%clk 0:00:22.2]} 36. Ke1
{[%clk 0:00:17]} 36... Bc3# {[%clk 0:00:22.3]} 0-1

[Event "*** Titled Tuesday Blitz"]
[Site "Chess.com"]
[Date "2020.03.03"]
[Round "9"]
[White "Everyfishknows"]
[Black "FearNoEvil12"]
[Result "0-1"]
[WhiteElo "2383"]
[BlackElo "2039"]
[TimeControl "180+1"]
[EndTime "14:45:55 PST"]
[Termination "FearNoEvil12 won by checkmate"]

1. d4 {[%clk 0:02:59.4]} 1... b5 {[%clk 0:02:59.6]} 2. e4 {[%clk 0:02:57.1]}
2... a6 {[%clk 0:02:59.9]} 3. Nf3 {[%clk 0:02:56.2]} 3... Bb7 {[%clk 0:03:00.3]}
4. Bd3 {[%clk 0:02:55.9]} 4... e6 {[%clk 0:03:00.8]} 5. O-O {[%clk 0:02:55.4]}
5... Nf6 {[%clk 0:03:01.1]} 6. Nbd2 {[%clk 0:02:52.6]} 6... d6 {[%clk
0:03:00.9]} 7. c3 {[%clk 0:02:51.8]} 7... Nbd7 {[%clk 0:03:01.1]} 8. Re1 {[%clk
0:02:51.6]} 8... Rg8 {[%clk 0:02:59.4]} 9. Nf1 {[%clk 0:02:48.8]} 9... h6 {[%clk
0:02:57.4]} 10. Ng3 {[%clk 0:02:31.8]} 10... g5 {[%clk 0:02:56.5]} 11. a4 {[%clk
0:02:05.8]} 11... g4 {[%clk 0:02:49.7]} 12. Nd2 {[%clk 0:02:01.8]} 12... bxa4
{[%clk 0:02:46.6]} 13. e5 {[%clk 0:01:46.2]} 13... Nd5 {[%clk 0:02:45.1]} 14.
exd6 {[%clk 0:01:41.6]} 14... cxd6 {[%clk 0:02:43.1]} 15. Qxa4 {[%clk
0:01:22.1]} 15... h5 {[%clk 0:02:38.3]} 16. Nc4 {[%clk 0:01:16.1]} 16... h4
{[%clk 0:01:48.6]} 17. Nf1 {[%clk 0:01:10.7]} 17... Qf6 {[%clk 0:01:36.4]} 18.
Na5 {[%clk 0:01:02.1]} 18... Nb6 {[%clk 0:01:24.4]} 19. Qc2 {[%clk 0:00:45.8]}
19... Bf3 {[%clk 0:01:11.3]} 20. Ne3 {[%clk 0:00:24.9]} 20... g3 {[%clk
0:01:04.6]} 21. fxg3 {[%clk 0:00:21.5]} 21... hxg3 {[%clk 0:01:02.5]} 22. gxf3
{[%clk 0:00:19.1]} 22... gxh2+ {[%clk 0:00:54.2]} 23. Kf2 {[%clk 0:00:17.7]}
23... Qh4+ {[%clk 0:00:52.7]} 24. Ke2 {[%clk 0:00:17.2]} 24... h1=Q {[%clk
0:00:46.7]} 25. Rxh1 {[%clk 0:00:16.6]} 25... Qxh1 {[%clk 0:00:46.4]} 26. Nb3
{[%clk 0:00:06]} 26... Qh2+ {[%clk 0:00:39.6]} 27. Kd1 {[%clk 0:00:02]} 27...
Rg1+ {[%clk 0:00:37.6]} 28. Nf1 {[%clk 0:00:02.6]} 28... Qh3 {[%clk 0:00:28]}
29. Qe2 {[%clk 0:00:02.5]} 29... Nd5 {[%clk 0:00:17.2]} 30. Bd2 {[%clk
0:00:02.8]} 30... N7f6 {[%clk 0:00:15.7]} 31. Kc2 {[%clk 0:00:03.2]} 31... Rc8
{[%clk 0:00:13.8]} 32. Ne3 {[%clk 0:00:03.4]} 32... Nb4# {[%clk 0:00:10.8]} 0-1

[Event "*** Titled Tuesday Blitz"]
[Site "Chess.com"]
[Date "2020.03.03"]
[Round "9"]
[White "Karacsonyi_Gellert"]
[Black "Volodar_Murzin"]
[Result "0-1"]
[WhiteElo "2587"]
[BlackElo "2694"]
[TimeControl "180+1"]
[EndTime "14:45:56 PST"]
[Termination "Volodar_Murzin won by resignation"]

1. e4 {[%clk 0:03:00.9]} 1... c6 {[%clk 0:02:59.5]} 2. d4 {[%clk 0:03:00.7]}
2... d5 {[%clk 0:02:59.8]} 3. exd5 {[%clk 0:03:01.6]} 3... cxd5 {[%clk
0:02:59.7]} 4. Bd3 {[%clk 0:03:02.1]} 4... Nc6 {[%clk 0:02:59.6]} 5. c3 {[%clk
0:03:02.4]} 5... g6 {[%clk 0:03:00]} 6. Nf3 {[%clk 0:03:02]} 6... Bf5 {[%clk
0:02:59.3]} 7. O-O {[%clk 0:03:00]} 7... Bg7 {[%clk 0:02:54.2]} 8. Bf4 {[%clk
0:02:56.7]} 8... Bxd3 {[%clk 0:02:53.1]} 9. Qxd3 {[%clk 0:02:56.3]} 9... e6
{[%clk 0:02:53.4]} 10. Nbd2 {[%clk 0:02:54.7]} 10... Nge7 {[%clk 0:02:53.7]} 11.
Rae1 {[%clk 0:02:53.7]} 11... O-O {[%clk 0:02:54]} 12. Ne5 {[%clk 0:02:53.7]}
12... Rc8 {[%clk 0:02:53.2]} 13. Ndf3 {[%clk 0:02:53.3]} 13... Na5 {[%clk
0:02:47.7]} 14. b4 {[%clk 0:02:46.8]} 14... Nc4 {[%clk 0:02:46.2]} 15. Nxc4
{[%clk 0:02:46.3]} 15... Rxc4 {[%clk 0:02:42.2]} 16. Nd2 {[%clk 0:02:39.1]}
16... Rc6 {[%clk 0:02:39]} 17. Be5 {[%clk 0:02:38.9]} 17... Qc8 {[%clk
0:02:36.6]} 18. Re3 {[%clk 0:02:35.3]} 18... Nf5 {[%clk 0:02:35.5]} 19. Rh3
{[%clk 0:02:25]} 19... f6 {[%clk 0:02:23.7]} 20. Bf4 {[%clk 0:02:14.1]} 20...
Qd7 {[%clk 0:02:23.1]} 21. g4 {[%clk 0:02:05.9]} 21... Nd6 {[%clk 0:02:19.5]}
22. Bxd6 {[%clk 0:01:56.8]} 22... Qxd6 {[%clk 0:02:18.2]} 23. f4 {[%clk
0:01:56.2]} 23... Rfc8 {[%clk 0:02:17.8]} 24. Rhf3 {[%clk 0:01:52.5]} 24... e5
{[%clk 0:02:13.8]} 25. fxe5 {[%clk 0:01:51.9]} 25... fxe5 {[%clk 0:02:13.6]} 26.
dxe5 {[%clk 0:01:50.2]} 26... Qxe5 {[%clk 0:02:12.6]} 27. Re3 {[%clk 0:01:42.1]}
27... Rxc3 {[%clk 0:02:08.6]} 28. Qxc3 {[%clk 0:01:23.2]} 28... Qxc3 {[%clk
0:01:58.1]} 29. Rxc3 {[%clk 0:01:22.4]} 29... Bxc3 {[%clk 0:01:59]} 30. Nf3
{[%clk 0:01:12.9]} 30... Bxb4 {[%clk 0:01:58]} 31. Rd1 {[%clk 0:01:12.3]} 31...
Rd8 {[%clk 0:01:55.7]} 32. Kf2 {[%clk 0:01:10.1]} 32... Bc5+ {[%clk 0:01:54.5]}
33. Ke2 {[%clk 0:01:08.8]} 33... Kg7 {[%clk 0:01:47.1]} 34. Kd3 {[%clk
0:01:05.5]} 34... Re8 {[%clk 0:01:45]} 35. Nd2 {[%clk 0:00:49.7]} 35... Re3+
{[%clk 0:01:43.1]} 36. Kc2 {[%clk 0:00:49]} 36... Re2 {[%clk 0:01:42.3]} 37. Kb1
{[%clk 0:00:36.2]} 37... Ba3 {[%clk 0:01:25.7]} 38. Nf3 {[%clk 0:00:32.3]} 38...
Rb2+ {[%clk 0:01:24.2]} 39. Ka1 {[%clk 0:00:31.7]} 39... Rf2 {[%clk 0:01:24.3]}
40. Ng5 {[%clk 0:00:25.3]} 40... Rxh2 {[%clk 0:01:13.2]} 41. Rf1 {[%clk
0:00:24.5]} 41... Re2 {[%clk 0:01:00.1]} 42. Kb1 {[%clk 0:00:19.9]} 42... Re7
{[%clk 0:00:59.1]} 43. Rd1 {[%clk 0:00:17.4]} 43... h6 {[%clk 0:00:46.9]} 44.
Nf3 {[%clk 0:00:17]} 44... Rd7 {[%clk 0:00:46.9]} 45. Ne5 {[%clk 0:00:16.9]}
45... Rd6 {[%clk 0:00:46.7]} 46. Nc4 {[%clk 0:00:17.2]} 46... dxc4 {[%clk
0:00:46.1]} 0-1

[Event "*** Titled Tuesday Blitz"]
[Site "Chess.com"]
[Date "2020.03.03"]
[Round "9"]
[White "Incognito_Knight"]
[Black "champ2005"]
[Result "0-1"]
[WhiteElo "2677"]
[BlackElo "2959"]
[TimeControl "180+1"]
[EndTime "14:45:57 PST"]
[Termination "champ2005 won by checkmate"]

1. e4 {[%clk 0:03:00]} 1... c5 {[%clk 0:02:59.5]} 2. Nf3 {[%clk 0:02:58.9]} 2...
d6 {[%clk 0:02:59.9]} 3. d4 {[%clk 0:02:56.4]} 3... cxd4 {[%clk 0:03:00.8]} 4.
Nxd4 {[%clk 0:02:57.3]} 4... Nf6 {[%clk 0:03:01.4]} 5. f3 {[%clk 0:02:57.5]}
5... e5 {[%clk 0:03:00.4]} 6. Nb3 {[%clk 0:02:57.7]} 6... Nc6 {[%clk 0:02:59.7]}
7. c4 {[%clk 0:02:56.8]} 7... a5 {[%clk 0:02:57]} 8. Be3 {[%clk 0:02:53.8]} 8...
Be7 {[%clk 0:02:55.7]} 9. Nc3 {[%clk 0:02:53]} 9... a4 {[%clk 0:02:56]} 10. Nd2
{[%clk 0:02:52.4]} 10... Qa5 {[%clk 0:02:56.5]} 11. Be2 {[%clk 0:02:50.5]} 11...
O-O {[%clk 0:02:55.6]} 12. O-O {[%clk 0:02:49.6]} 12... Bd7 {[%clk 0:02:47.8]}
13. Rc1 {[%clk 0:02:42.6]} 13... Rfc8 {[%clk 0:02:43.4]} 14. Nd5 {[%clk
0:02:09.2]} 14... Nxd5 {[%clk 0:02:42.8]} 15. cxd5 {[%clk 0:02:06.7]} 15... Nd4
{[%clk 0:02:43.4]} 16. Nc4 {[%clk 0:02:04.5]} 16... Qa7 {[%clk 0:02:43.9]} 17.
Bd3 {[%clk 0:01:31]} 17... b5 {[%clk 0:02:44.2]} 18. Na3 {[%clk 0:01:31]} 18...
Bg5 {[%clk 0:02:35.5]} 19. Bxg5 {[%clk 0:01:18.1]} 19... Nxf3+ {[%clk
0:02:32.8]} 20. Kh1 {[%clk 0:01:17.3]} 20... Nxg5 {[%clk 0:02:33.7]} 21. Bxb5
{[%clk 0:01:13.2]} 21... Nxe4 {[%clk 0:02:17.2]} 22. Bxd7 {[%clk 0:00:27.4]}
22... Qxd7 {[%clk 0:02:18.1]} 23. Nc4 {[%clk 0:00:24.1]} 23... Rab8 {[%clk
0:02:11.9]} 24. Qf3 {[%clk 0:00:20.2]} 24... f5 {[%clk 0:02:05.3]} 25. Qd3
{[%clk 0:00:15.4]} 25... g6 {[%clk 0:02:01.6]} 26. Qe3 {[%clk 0:00:11.2]} 26...
Qb5 {[%clk 0:01:54.3]} 27. Qd3 {[%clk 0:00:05.7]} 27... Rc5 {[%clk 0:01:49.4]}
28. g4 {[%clk 0:00:02.3]} 28... Rxd5 {[%clk 0:01:47.6]} 29. Qf3 {[%clk
0:00:02.2]} 29... Ng5 {[%clk 0:01:31.1]} 30. Qg2 {[%clk 0:00:01.2]} 30... f4
{[%clk 0:01:29.5]} 31. Na3 {[%clk 0:00:01.6]} 31... Qb7 {[%clk 0:01:24.8]} 32.
Nc4 {[%clk 0:00:01.7]} 32... Rd4 {[%clk 0:01:21.8]} 33. Qxb7 {[%clk 0:00:01.8]}
33... Rxb7 {[%clk 0:01:22.7]} 34. h4 {[%clk 0:00:02.2]} 34... Ne6 {[%clk
0:01:22.6]} 35. Rfe1 {[%clk 0:00:01.7]} 35... Kf8 {[%clk 0:01:20.1]} 36. Rc3
{[%clk 0:00:00.7]} 36... Rc7 {[%clk 0:01:15.6]} 37. Rec1 {[%clk 0:00:01.6]}
37... Ke7 {[%clk 0:01:15.5]} 38. Na5 {[%clk 0:00:01.8]} 38... Rxc3 {[%clk
0:01:14.4]} 39. Rxc3 {[%clk 0:00:01]} 39... Rd1+ {[%clk 0:01:14.6]} 40. Kg2
{[%clk 0:00:01.5]} 40... Rd2+ {[%clk 0:01:15.5]} 41. Kf3 {[%clk 0:00:02.1]}
41... d5 {[%clk 0:01:13.6]} 42. Nc6+ {[%clk 0:00:02.1]} 42... Kd6 {[%clk
0:01:13.6]} 43. Nb8 {[%clk 0:00:01.8]} 43... e4# {[%clk 0:01:13.6]} 0-1

[Event "*** Titled Tuesday Blitz"]
[Site "Chess.com"]
[Date "2020.03.03"]
[Round "9"]
[White "HashtagChess"]
[Black "Babas"]
[Result "0-1"]
[WhiteElo "1619"]
[BlackElo "2334"]
[TimeControl "180+1"]
[EndTime "14:46:03 PST"]
[Termination "Babas won by resignation"]

1. e4 {[%clk 0:03:00.9]} 1... c5 {[%clk 0:02:59]} 2. Nf3 {[%clk 0:03:00.4]} 2...
Nc6 {[%clk 0:02:59.4]} 3. d4 {[%clk 0:02:57.6]} 3... cxd4 {[%clk 0:02:59.1]} 4.
Nxd4 {[%clk 0:02:56]} 4... Nf6 {[%clk 0:03:00]} 5. Nc3 {[%clk 0:02:55.4]} 5...
e5 {[%clk 0:02:59.9]} 6. Ndb5 {[%clk 0:02:55.5]} 6... d6 {[%clk 0:02:59.6]} 7.
Bg5 {[%clk 0:02:53.3]} 7... a6 {[%clk 0:02:58.7]} 8. Na3 {[%clk 0:02:52.7]} 8...
b5 {[%clk 0:02:59]} 9. Nd5 {[%clk 0:02:38.9]} 9... Be7 {[%clk 0:02:58.2]} 10.
Bxf6 {[%clk 0:02:39.1]} 10... Bxf6 {[%clk 0:02:59.1]} 11. Nxf6+ {[%clk
0:02:31.6]} 11... Qxf6 {[%clk 0:02:48.9]} 12. c3 {[%clk 0:02:29.6]} 12... O-O
{[%clk 0:02:47.1]} 13. Be2 {[%clk 0:02:22.6]} 13... Qg6 {[%clk 0:02:46.7]} 14.
O-O {[%clk 0:02:21.1]} 14... Bb7 {[%clk 0:02:43.9]} 15. Bf3 {[%clk 0:02:20.8]}
15... Rad8 {[%clk 0:02:43.4]} 16. Nc2 {[%clk 0:02:19.1]} 16... Ne7 {[%clk
0:02:42.6]} 17. Re1 {[%clk 0:02:13.7]} 17... Kh8 {[%clk 0:02:04]} 18. a4 {[%clk
0:01:55.3]} 18... d5 {[%clk 0:01:58.5]} 19. exd5 {[%clk 0:01:46.6]} 19... Nxd5
{[%clk 0:01:59.4]} 20. Qc1 {[%clk 0:01:38.2]} 20... Rfe8 {[%clk 0:01:20.8]} 21.
axb5 {[%clk 0:01:35.9]} 21... axb5 {[%clk 0:01:13.6]} 22. Ra7 {[%clk 0:01:29.7]}
22... Bc6 {[%clk 0:01:13.1]} 23. Nb4 {[%clk 0:01:21.7]} 23... Nxb4 {[%clk
0:00:54.7]} 24. Bxc6 {[%clk 0:00:47.4]} 24... Nxc6 {[%clk 0:00:55.6]} 25. Ra6
{[%clk 0:00:48.3]} 25... Re6 {[%clk 0:00:43.1]} 26. c4 {[%clk 0:00:46.4]} 26...
Nd4 {[%clk 0:00:17.3]} 27. cxb5 {[%clk 0:00:33.6]} 27... Rxa6 {[%clk 0:00:13.4]}
28. bxa6 {[%clk 0:00:32.8]} 28... Nf3+ {[%clk 0:00:14]} 29. Kh1 {[%clk
0:00:33.2]} 29... Nxe1 {[%clk 0:00:14.9]} 30. Qxe1 {[%clk 0:00:32.3]} 30... Qxa6
{[%clk 0:00:15.8]} 31. h3 {[%clk 0:00:29.3]} 31... Qd3 {[%clk 0:00:15.8]} 32.
Qxe5 {[%clk 0:00:26]} 32... Qd1+ {[%clk 0:00:10.6]} 33. Kh2 {[%clk 0:00:26.3]}
33... Qd6 {[%clk 0:00:11.5]} 0-1

[Event "*** Titled Tuesday Blitz"]
[Site "Chess.com"]
[Date "2020.03.03"]
[Round "9"]
[White "VeraNebolsina"]
[Black "Keaton87"]
[Result "0-1"]
[WhiteElo "2331"]
[BlackElo "2608"]
[TimeControl "180+1"]
[EndTime "14:46:07 PST"]
[Termination "Keaton87 won by resignation"]

1. e4 {[%clk 0:02:59.5]} 1... c5 {[%clk 0:01:46.1]} 2. Nc3 {[%clk 0:02:50.7]}
2... a6 {[%clk 0:01:45.6]} 3. g3 {[%clk 0:02:49.6]} 3... b5 {[%clk 0:01:44.6]}
4. Bg2 {[%clk 0:02:49.9]} 4... Bb7 {[%clk 0:01:45]} 5. d3 {[%clk 0:02:47.3]}
5... e6 {[%clk 0:01:45.4]} 6. Nh3 {[%clk 0:02:43.4]} 6... b4 {[%clk 0:01:45.6]}
7. Ne2 {[%clk 0:02:42.4]} 7... d5 {[%clk 0:01:46.2]} 8. O-O {[%clk 0:02:18.7]}
8... dxe4 {[%clk 0:01:46]} 9. Ng5 {[%clk 0:02:13.4]} 9... Nf6 {[%clk 0:01:43.4]}
10. Nf4 {[%clk 0:01:43]} 10... Be7 {[%clk 0:01:41.7]} 11. Bd2 {[%clk 0:01:19.9]}
11... O-O {[%clk 0:01:40.4]} 12. Re1 {[%clk 0:01:03.4]} 12... Ra7 {[%clk
0:01:33.1]} 13. Nxe4 {[%clk 0:01:01.9]} 13... Nxe4 {[%clk 0:01:32.4]} 14. Bxe4
{[%clk 0:01:00.2]} 14... Bxe4 {[%clk 0:01:31.7]} 15. Rxe4 {[%clk 0:00:59.2]}
15... Nc6 {[%clk 0:01:31.3]} 16. Qh5 {[%clk 0:00:56.2]} 16... g6 {[%clk
0:01:27.7]} 17. Qh3 {[%clk 0:00:45]} 17... Nd4 {[%clk 0:01:26.9]} 18. Rd1 {[%clk
0:00:18.6]} 18... Nxc2 {[%clk 0:01:26.5]} 19. Ng2 {[%clk 0:00:09.5]} 19... Nd4
{[%clk 0:01:25.1]} 20. Bh6 {[%clk 0:00:08.4]} 20... Re8 {[%clk 0:01:24.3]} 21.
Ne3 {[%clk 0:00:07.6]} 21... f5 {[%clk 0:01:19.2]} 22. Re5 {[%clk 0:00:06.8]}
22... Bd6 {[%clk 0:01:16.4]} 23. Nc4 {[%clk 0:00:06.5]} 23... Bxe5 {[%clk
0:01:14.6]} 24. Nxe5 {[%clk 0:00:06.3]} 24... Qf6 {[%clk 0:01:14.1]} 25. f4
{[%clk 0:00:05.3]} 25... Rc7 {[%clk 0:01:08.7]} 26. Bg5 {[%clk 0:00:05.2]} 26...
Qg7 {[%clk 0:01:08.8]} 27. Qh4 {[%clk 0:00:05.3]} 27... Qxe5 {[%clk 0:00:57.5]}
28. fxe5 {[%clk 0:00:04.5]} 28... Nf3+ {[%clk 0:00:57.7]} 29. Kf2 {[%clk
0:00:03.7]} 29... Nxh4 {[%clk 0:00:57.9]} 30. Bxh4 {[%clk 0:00:04.3]} 30... h6
{[%clk 0:00:57.2]} 31. Bf6 {[%clk 0:00:04.2]} 31... Kf7 {[%clk 0:00:56.5]} 32.
Ke3 {[%clk 0:00:04.2]} 32... Rec8 {[%clk 0:00:56.1]} 33. b3 {[%clk 0:00:04]}
33... Rc6 {[%clk 0:00:56.4]} 34. Rc1 {[%clk 0:00:04.1]} 34... a5 {[%clk
0:00:56.5]} 35. Rc4 {[%clk 0:00:04.2]} 35... g5 {[%clk 0:00:55.5]} 36. h4 {[%clk
0:00:02.5]} 36... Kg6 {[%clk 0:00:55.8]} 37. hxg5 {[%clk 0:00:02.1]} 37... hxg5
{[%clk 0:00:56.7]} 38. g4 {[%clk 0:00:02.7]} 38... a4 {[%clk 0:00:49.3]} 39.
gxf5+ {[%clk 0:00:01.8]} 39... exf5 {[%clk 0:00:48.4]} 40. bxa4 {[%clk
0:00:02.7]} 40... Kf7 {[%clk 0:00:42.2]} 41. a5 {[%clk 0:00:02.6]} 41... Kg6
{[%clk 0:00:41.2]} 42. a6 {[%clk 0:00:02.8]} 42... Rxa6 {[%clk 0:00:40.6]} 43.
Rc2 {[%clk 0:00:02.1]} 43... Ra3 {[%clk 0:00:39.7]} 44. Rg2 {[%clk 0:00:02]}
44... g4 {[%clk 0:00:39.7]} 45. Kf4 {[%clk 0:00:02.2]} 45... Rxd3 {[%clk
0:00:39.2]} 46. e6 {[%clk 0:00:01.1]} 0-1

[Event "*** Titled Tuesday Blitz"]
[Site "Chess.com"]
[Date "2020.03.03"]
[Round "9"]
[White "ChessPlayer202202"]
[Black "RaphCamora"]
[Result "0-1"]
[WhiteElo "2297"]
[BlackElo "2437"]
[TimeControl "180+1"]
[EndTime "14:46:10 PST"]
[Termination "RaphCamora won on time"]

1. e4 {[%clk 0:03:00.9]} 1... c5 {[%clk 0:02:58.6]} 2. Nf3 {[%clk 0:03:00.5]}
2... Nc6 {[%clk 0:02:52.3]} 3. d4 {[%clk 0:02:59.9]} 3... cxd4 {[%clk
0:02:51.5]} 4. Nxd4 {[%clk 0:03:00.8]} 4... Nf6 {[%clk 0:02:51.5]} 5. Nc3 {[%clk
0:03:00.5]} 5... e5 {[%clk 0:02:51.6]} 6. Ndb5 {[%clk 0:03:00.4]} 6... d6 {[%clk
0:02:52.2]} 7. Bg5 {[%clk 0:03:01]} 7... a6 {[%clk 0:02:52.8]} 8. Na3 {[%clk
0:03:01.3]} 8... b5 {[%clk 0:02:53.5]} 9. Nd5 {[%clk 0:03:02]} 9... Be7 {[%clk
0:02:53.8]} 10. Bxf6 {[%clk 0:03:02.7]} 10... Bxf6 {[%clk 0:02:54.7]} 11. c3
{[%clk 0:03:03.3]} 11... Bg5 {[%clk 0:02:54.1]} 12. Nc2 {[%clk 0:03:03.7]} 12...
Rb8 {[%clk 0:02:53.9]} 13. a4 {[%clk 0:03:03.5]} 13... bxa4 {[%clk 0:02:54]} 14.
Ncb4 {[%clk 0:03:04.1]} 14... Nxb4 {[%clk 0:02:54.2]} 15. Nxb4 {[%clk
0:03:02.8]} 15... Bd7 {[%clk 0:02:38.5]} 16. Bxa6 {[%clk 0:02:34.9]} 16... O-O
{[%clk 0:02:35.4]} 17. O-O {[%clk 0:02:32.5]} 17... Qb6 {[%clk 0:02:28.1]} 18.
Bc4 {[%clk 0:02:22.8]} 18... Qc5 {[%clk 0:02:26.6]} 19. Qd5 {[%clk 0:02:02.4]}
19... Rfc8 {[%clk 0:02:12.3]} 20. Qxf7+ {[%clk 0:02:00.7]} 20... Kh8 {[%clk
0:02:06.4]} 21. Qxd7 {[%clk 0:01:54.7]} 21... Qxc4 {[%clk 0:01:59.9]} 22. Qxd6
{[%clk 0:01:52.5]} 22... Qxe4 {[%clk 0:01:30.8]} 23. Rxa4 {[%clk 0:01:45.4]}
23... Qe2 {[%clk 0:01:23.7]} 24. Ra7 {[%clk 0:01:18.8]} 24... Rd8 {[%clk
0:01:06.4]} 25. Qc7 {[%clk 0:01:16]} 25... Bf6 {[%clk 0:01:03.8]} 26. Nc6 {[%clk
0:00:48.8]} 26... Rbc8 {[%clk 0:00:57.3]} 27. Qb7 {[%clk 0:00:46.2]} 27... Re8
{[%clk 0:00:45.1]} 28. b4 {[%clk 0:00:20.9]} 28... e4 {[%clk 0:00:44.6]} 29. Nd4
{[%clk 0:00:19.3]} 29... Qd3 {[%clk 0:00:36.9]} 30. Nf5 {[%clk 0:00:18.8]} 30...
Rxc3 {[%clk 0:00:27.2]} 31. Nxg7 {[%clk 0:00:15.7]} 31... Re7 {[%clk 0:00:27.4]}
32. Ra8+ {[%clk 0:00:03.2]} 32... Kxg7 {[%clk 0:00:26.9]} 33. Qb8 {[%clk
0:00:04.1]} 33... Kg6 {[%clk 0:00:22.8]} 0-1